fUST/lending_fUST_20240112
["ID","MTS","AMOUNT","RATE_DAILY","PERIOD"]
[311266923,1705005042470,-500.0,0.00030136,2]
[311266924,1705005042479,-500.0,0.00030136,2]
[311266925,1705005042488,-500.0,0.00030136,2]
[311266926,1705005042497,-352.54188224,0.00030136,2]
[311266927,1705005042506,-500.0,0.00030136,2]
[311266928,1705005042514,-502.0635084,0.00030136,2]
[311266929,1705005042524,-500.0,0.00030136,2]
[311266930,1705005042533,-500.0,0.00030136,2]
[311266931,1705005042543,-475.76600609,0.00030136,2]
[311266932,1705005042555,-500.0,0.00030136,2]
[311266933,1705005042564,-500.0,0.00030136,2]
[311266934,1705005042575,-500.0,0.00030136,2]
[311266936,1705005042584,-501.82843532,0.00030136,2]
[311266938,1705005042593,-500.0,0.00030136,2]
[311266940,1705005042602,-500.0,0.00030136,2]
[311266942,1705005042611,-500.0,0.00030136,2]
[311266943,1705005042620,-501.28748838,0.00030136,2]
[311266944,1705005042629,-500.0,0.00030136,2]
[311266945,1705005042638,-500.0,0.00030136,2]
[311266947,1705005042647,-500.0,0.00030136,2]
[311266950,1705005042659,-500.0,0.00030136,2]
[311266953,1705005042668,-500.0,0.00030136,2]
[311266955,1705005042677,-500.0,0.00030136,2]
[311266958,1705005042686,-500.0,0.00030136,2]
[311266961,1705005042695,-500.0,0.00030136,2]
[311266963,1705005042704,-500.0,0.00030136,2]
[311266967,1705005042713,-500.0,0.00030136,2]
[311266970,1705005042722,-500.0,0.00030136,2]
[311266973,1705005042731,-500.0,0.00030136,2]
[311266976,1705005042739,-500.0,0.00030136,2]
[311266980,1705005042748,-500.0,0.00030136,2]
[311266982,1705005042757,-500.0,0.00030136,2]
[311266983,1705005042766,-500.0,0.00030136,2]
[311266985,1705005042776,-500.0,0.00030136,2]
[311266987,1705005042785,-781.02905726,0.00030136,5]
[311266989,1705005042795,-500.0,0.00030136,2]
[311266990,1705005042803,-500.0,0.00030136,2]
[311266991,1705005042812,-500.0,0.00030136,2]
[311266992,1705005042821,-211.36391079,0.00030136,2]
[311266994,1705005042831,-500.0,0.00030136,2]
[311266996,1705005042839,-957.08,0.00030136,2]
[311266998,1705005042848,-500.0,0.00030136,2]
[311267000,1705005042857,-500.0,0.00030136,2]
[311267002,1705005042866,-500.0,0.00030136,2]
[311267003,1705005042875,-500.0,0.00030136,2]
[311267004,1705005042884,-500.0,0.00030136,2]
[311267005,1705005042893,-500.0,0.00030136,2]
[311267006,1705005042902,-503.38877477,0.00030136,2]
[311267007,1705005042911,-500.0,0.00030136,2]
[311267008,1705005042920,-500.0,0.00030136,2]
[311267009,1705005042929,-620.68321012,0.00030136,2]
[311267010,1705005042938,-506.61528026,0.00030136,2]
[311267011,1705005042947,-500.0,0.00030136,2]
[311267012,1705005042956,-500.0,0.00030136,2]
[311267013,1705005042966,-500.0,0.00030136,2]
[311267014,1705005042974,-500.0,0.00030136,2]
[311267015,1705005042984,-510.97783528,0.00030136,2]
[311267016,1705005042993,-503.63059754,0.00030136,2]
[311267017,1705005043003,-500.0,0.00030136,2]
[311267018,1705005043012,-500.0,0.00030136,2]
[311267019,1705005043021,-500.0,0.00030136,2]
[311267020,1705005043031,-500.0,0.00030136,2]
[311267021,1705005043040,-500.0,0.00030136,2]
[311267022,1705005043050,-500.0,0.00030136,2]
[311267023,1705005043059,-500.0,0.00030136,2]
[311267024,1705005043070,-500.0,0.00030136,2]
[311267025,1705005043079,-500.0,0.00030136,2]
[311267026,1705005043088,-601.14420267,0.00030136,2]
[311267027,1705005043097,-500.0,0.00030136,2]
[311267029,1705005043106,-500.0,0.00030136,2]
[311267031,1705005043116,-500.0,0.00030136,2]
[311267033,1705005043136,-500.0,0.00030136,2]
[311267035,1705005043146,-500.0,0.00030136,2]
[311267037,1705005043155,-225.87099317,0.00030136,2]
[311267038,1705005043165,-500.0,0.00030136,2]
[311267039,1705005043174,-503.18365884,0.00030136,2]
[311267040,1705005043184,-500.0,0.00030136,2]
[311267041,1705005043194,-500.0,0.00030136,2]
[311267042,1705005043203,-503.53888354,0.00030136,2]
[311267043,1705005043213,-500.0,0.00030136,2]
[311267044,1705005043222,-505.49538568,0.00030136,2]
[311267045,1705005043232,-10488.71,0.00030136,2]
[311267046,1705005043242,-500.0,0.00030136,2]
[311267047,1705005043251,-500.0,0.00030136,2]
[311267048,1705005043260,-500.0,0.00030136,2]
[311267049,1705005043270,-500.0,0.00030136,2]
[311267051,1705005043280,-500.0,0.00030136,2]
[311267053,1705005043290,-500.0,0.00030136,2]
[311267055,1705005043300,-500.0,0.00030136,2]
[311267057,1705005043310,-500.0,0.00030136,2]
[311267058,1705005043319,-356.88042739,0.00030136,2]
[311267059,1705005043328,-500.0,0.00030136,2]
[311267060,1705005043338,-500.0,0.00030136,2]
[311267061,1705005043348,-500.0,0.00030136,2]
[311267062,1705005043359,-500.0,0.00030136,2]
[311267063,1705005043369,-500.0,0.00030136,2]
[311267064,1705005043379,-500.0,0.00030136,2]
[311267065,1705005043389,-1496.76,0.00030136,2]
[311267066,1705005043400,-500.0,0.00030136,2]
[311267067,1705005043410,-500.0,0.00030136,2]
[311267068,1705005043421,-506.6343606,0.00030136,2]
[311267069,1705005043431,-2663.39,0.00030136,2]
[311267070,1705005043441,-500.0,0.00030136,2]
[311267071,1705005043450,-500.0,0.00030136,2]
[311267072,1705005043464,-500.0,0.00030136,2]
[311267073,1705005043474,-500.0,0.00030136,2]
[311267074,1705005043483,-500.0,0.00030136,2]
[311267075,1705005043493,-1052.26,0.00030136,2]
[311267076,1705005043502,-500.0,0.00030136,2]
[311267077,1705005043512,-500.0,0.00030136,2]
[311267078,1705005043521,-558.97,0.00030136,2]
[311267079,1705005043531,-576.25083322,0.00030136,2]
[311267080,1705005043540,-683.02,0.00030136,2]
[311267081,1705005043550,-503.69029425,0.00030136,2]
[311267082,1705005043559,-500.0,0.00030136,2]
[311267083,1705005043568,-500.0,0.00030136,2]
[311267084,1705005043578,-500.0,0.00030136,2]
[311267085,1705005043587,-500.0,0.00030136,2]
[311267086,1705005043596,-500.0,0.00030136,2]
[311267087,1705005043605,-500.0,0.00030136,2]
[311267088,1705005043614,-500.0,0.00030136,2]
[311267089,1705005043623,-5139.21,0.00030136,2]
[311267090,1705005043632,-500.0,0.00030136,2]
[311267091,1705005043642,-500.0,0.00030136,2]
[311267092,1705005043651,-500.0,0.00030136,2]
[311267093,1705005043660,-500.0,0.00030136,2]
[311267094,1705005043670,-281.74517376,0.00030136,2]
[311267095,1705005043679,-500.0,0.00030136,2]
[311267096,1705005043689,-500.0,0.00030136,2]
[311267097,1705005043698,-500.0,0.00030136,2]
[311267098,1705005043707,-500.0,0.00030136,2]
[311267099,1705005043716,-500.0,0.00030136,2]
[311267100,1705005043725,-609.2,0.00030136,2]
[311267101,1705005043735,-500.0,0.00030136,2]
[311267102,1705005043744,-500.0,0.00030136,2]
[311267103,1705005043753,-950.32,0.00030136,2]
[311267104,1705005043763,-500.55430526,0.00030136,2]
[311267105,1705005043772,-500.0,0.00030136,2]
[311267106,1705005043782,-500.0,0.00030136,2]
[311267107,1705005043792,-500.0,0.00030136,2]
[311267108,1705005043801,-500.0,0.00030136,2]
[311267109,1705005043811,-500.0,0.00030136,2]
[311267110,1705005043820,-500.0,0.00030136,2]
[311267111,1705005043829,-604.49743939,0.00030136,2]
[311267112,1705005043838,-503.56838718,0.00030136,2]
[311267113,1705005043848,-500.0,0.00030136,2]
[311267114,1705005043857,-500.0,0.00030136,2]
[311267115,1705005043866,-500.0,0.00030136,2]
[311267116,1705005043876,-412.25216866,0.00030136,2]
[311267117,1705005043885,-500.0,0.00030136,2]
[311267118,1705005043895,-500.0,0.00030136,2]
[311267119,1705005043904,-257.42195307,0.00030136,2]
[311267120,1705005043913,-593.4206134,0.00030136,2]
[311267121,1705005043922,-500.0,0.00030136,2]
[311267122,1705005043931,-500.0,0.00030136,2]
[311267123,1705005043941,-500.0,0.00030136,2]
[311267124,1705005043950,-839.26,0.00030136,2]
[311267125,1705005043959,-510.03142022,0.00030136,2]
[311267126,1705005043968,-502.011769,0.00030136,2]
[311267127,1705005043978,-500.0,0.00030136,2]
[311267128,1705005043987,-500.0,0.00030136,2]
[311267129,1705005043997,-500.0,0.00030136,2]
[311267130,1705005044006,-500.0,0.00030136,2]
[311267131,1705005044015,-1543.66,0.00030136,2]
[311267132,1705005044024,-500.0,0.00030136,2]
[311267133,1705005044034,-500.0,0.00030136,2]
[311267134,1705005044044,-500.0,0.00030136,2]
[311267135,1705005044053,-470.32596766,0.00030139,2]
[311267136,1705005044063,-500.0,0.00030139,2]
[311267137,1705005044072,-500.0,0.00030139,2]
[311267138,1705005044082,-500.0,0.00030139,2]
[311267139,1705005044091,-614.24655462,0.00030139,2]
[311267140,1705005044100,-500.0,0.00030139,2]
[311267141,1705005044109,-197.58697403,0.00030139,2]
[311267142,1705005044118,-153.00504468,0.00030139,2]
[311267143,1705005044127,-500.0,0.00030139,2]
[311267144,1705005044137,-445.71161823,0.00030139,2]
[311267145,1705005044146,-500.0,0.00030139,2]
[311267146,1705005044154,-500.0,0.00030139,2]
[311267147,1705005044164,-500.0,0.00030139,2]
[311267148,1705005044173,-500.0,0.00030139,2]
[311267149,1705005044182,-309.38599436,0.00030139,2]
[311267150,1705005044191,-500.0,0.00030139,2]
[311267151,1705005044201,-500.0,0.00030139,2]
[311267152,1705005044210,-500.0,0.00030139,2]
[311267153,1705005044220,-500.0,0.00030139,2]
[311267154,1705005044229,-155.10702385,0.000302,4]
[311267155,1705005044238,-154.09671267,0.00030205,7]
[311267156,1705005044248,-245.946937,0.00030347,2]
[311267157,1705005044258,-920.155087,0.00030347,2]
[311267158,1705005044267,-651.899884,0.00030347,2]
[311267159,1705005044275,-155.0,0.0003037,2]
[311267160,1705005044285,-155.50940124,0.00030404,4]
[311267161,1705005044294,-309.31054584,0.00030404,4]
[311267162,1705005044303,-155.43076092,0.00030406,4]
[311267163,1705005044312,-309.16953134,0.00030406,4]
[311267164,1705005044322,-247.12980198,0.00030406,2]
[311267165,1705005044331,-1504.31902634,0.00030406,2]
[311267166,1705005044340,-1504.31902634,0.00030406,2]
[311267167,1705005044349,-1504.31902634,0.00030406,2]
[311267168,1705005044358,-1504.31902634,0.00030406,2]
[311267169,1705005044367,-1504.31902634,0.00030406,2]
[311267170,1705005044377,-1504.31902634,0.00030406,2]
[311267171,1705005044386,-1504.31902634,0.00030406,2]
[311267172,1705005044395,-1504.31902634,0.00030406,2]
[311267173,1705005044404,-1504.31902634,0.00030406,2]
[311267174,1705005044413,-1504.31902634,0.00030406,2]
[311267175,1705005044527,-522.58691347,0.0003041,2]
[311267176,1705005044536,-521.74935301,0.0003041,2]
[311267177,1705005044547,-559.32044654,0.0003041,2]
[311267178,1705005044555,-500.0,0.0003041,2]
[311267179,1705005044565,-500.0,0.0003041,2]
[311267180,1705005044575,-500.0,0.0003041,2]
[311267181,1705005044585,-500.0,0.0003041,2]
[311267182,1705005044595,-555.35,0.0003041,2]
[311267183,1705005044604,-500.0,0.0003041,2]
[311267184,1705005044614,-500.0,0.0003041,2]
[311267185,1705005044625,-500.0,0.0003041,2]
[311267186,1705005044634,-499.32168742,0.0003041,2]
[311267187,1705005044643,-500.0,0.0003041,2]
[311267188,1705005044654,-500.0,0.0003041,2]
[311267189,1705005044663,-500.0,0.0003041,2]
[311267190,1705005044672,-545.53911227,0.0003041,2]
[311267191,1705005044680,-500.0,0.0003041,2]
[311267192,1705005044690,-500.0,0.0003041,2]
[311267193,1705005044699,-503.84768849,0.0003041,2]
[311267194,1705005044708,-500.0,0.0003041,2]
[311267195,1705005044718,-1000.0,0.0003041,2]
[311267196,1705005044727,-500.0,0.0003041,2]
[311267197,1705005044736,-500.0,0.0003041,2]
[311267198,1705005044745,-500.0,0.0003041,2]
[311267199,1705005044754,-500.0,0.0003041,2]
[311267200,1705005044763,-500.0,0.0003041,2]
[311267201,1705005044773,-500.0,0.0003041,2]
[311267202,1705005044782,-500.0,0.0003041,2]
[311267203,1705005044791,-216.46883088,0.0003041,2]
[311267204,1705005044800,-500.0,0.0003041,2]
[311267205,1705005044809,-500.0,0.0003041,2]
[311267206,1705005044818,-500.0,0.0003041,2]
[311267207,1705005044827,-500.0,0.0003041,2]
[311267208,1705005044836,-500.0,0.0003041,2]
[311267209,1705005044845,-500.0,0.0003041,2]
[311267210,1705005044854,-445.60852312,0.0003041,2]
[311267211,1705005044864,-500.0,0.0003041,2]
[311267212,1705005044873,-500.0,0.0003041,2]
[311267213,1705005044882,-500.0,0.0003041,2]
[311267214,1705005044891,-500.0,0.0003041,2]
[311267215,1705005044900,-500.0,0.0003041,2]
[311267216,1705005044909,-500.0,0.0003041,2]
[311267217,1705005044918,-500.0,0.0003041,2]
[311267218,1705005044927,-957.08,0.0003041,2]
[311267219,1705005044936,-500.0,0.0003041,2]
[311267220,1705005044945,-520.04023755,0.0003041,2]
[311267221,1705005044954,-500.0,0.0003041,2]
[311267222,1705005044963,-500.0,0.0003041,2]
[311267223,1705005044972,-363.90282833,0.0003041,2]
[311267224,1705005044982,-500.0,0.0003041,2]
[311267225,1705005044990,-500.0,0.0003041,2]
[311267226,1705005045000,-492.55173758,0.0003041,2]
[311267227,1705005045009,-500.0,0.0003041,2]
[311267228,1705005045018,-500.0,0.0003041,2]
[311267229,1705005045027,-500.0,0.0003041,2]
[311267230,1705005045036,-500.0,0.0003041,2]
[311267231,1705005045046,-547.17160883,0.0003041,2]
[311267232,1705005045055,-500.0,0.0003041,2]
[311267233,1705005045064,-500.0,0.0003041,2]
[311267234,1705005045073,-500.0,0.0003041,2]
[311267235,1705005045082,-153.08120164,0.0003041,2]
[311267236,1705005045092,-10488.71,0.0003041,2]
[311267237,1705005045101,-500.0,0.0003041,2]
[311267238,1705005045110,-500.0,0.0003041,2]
[311267239,1705005045119,-500.0,0.0003041,2]
[311267240,1705005045129,-409.44955892,0.0003041,2]
[311267241,1705005045138,-500.0,0.0003041,2]
[311267242,1705005045147,-500.0,0.0003041,2]
[311267243,1705005045156,-500.0,0.0003041,2]
[311267244,1705005045165,-500.0,0.0003041,2]
[311267245,1705005045174,-1496.76,0.0003041,2]
[311267246,1705005045183,-500.0,0.0003041,2]
[311267247,1705005045193,-2663.39,0.0003041,2]
[311267248,1705005045202,-500.0,0.0003041,2]
[311267249,1705005045211,-500.0,0.0003041,2]
[311267250,1705005045220,-350.52301374,0.0003041,2]
[311267251,1705005045229,-500.0,0.0003041,2]
[311267252,1705005045238,-500.0,0.0003041,2]
[311267253,1705005045248,-1052.26,0.0003041,2]
[311267254,1705005045257,-500.0,0.0003041,2]
[311267255,1705005045266,-558.97,0.0003041,2]
[311267256,1705005045275,-683.02,0.0003041,2]
[311267257,1705005045285,-500.0,0.0003041,2]
[311267258,1705005045295,-500.0,0.0003041,2]
[311267259,1705005045305,-500.0,0.0003041,2]
[311267260,1705005045314,-500.0,0.0003041,2]
[311267261,1705005045323,-493.32760394,0.0003041,2]
[311267262,1705005045332,-500.0,0.0003041,2]
[311267263,1705005045341,-5139.21,0.0003041,2]
[311267264,1705005045350,-500.0,0.0003041,2]
[311267265,1705005045359,-500.0,0.0003041,2]
[311267266,1705005045368,-500.0,0.0003041,2]
[311267267,1705005045377,-500.0,0.0003041,2]
[311267268,1705005045386,-500.0,0.0003041,2]
[311267269,1705005045395,-500.0,0.0003041,2]
[311267270,1705005045404,-502.68276975,0.0003041,2]
[311267271,1705005045413,-950.32,0.0003041,2]
[311267272,1705005045422,-609.2,0.0003041,2]
[311267273,1705005045431,-500.0,0.0003041,2]
[311267274,1705005045441,-500.0,0.0003041,2]
[311267275,1705005045450,-500.0,0.0003041,2]
[311267276,1705005045460,-500.0,0.0003041,2]
[311267277,1705005045469,-500.0,0.0003041,2]
[311267278,1705005045478,-500.0,0.0003041,2]
[311267279,1705005045487,-296.81029934,0.0003041,2]
[311267280,1705005045496,-500.0,0.0003041,2]
[311267281,1705005045505,-500.0,0.0003041,2]
[311267282,1705005045514,-500.0,0.0003041,2]
[311267283,1705005045524,-839.26,0.0003041,2]
[311267284,1705005045532,-500.0,0.0003041,2]
[311267285,1705005045543,-500.0,0.0003041,2]
[311267286,1705005045552,-1543.66,0.0003041,2]
[311267287,1705005045564,-500.0,0.0003041,2]
[311267288,1705005045573,-154.09671267,0.00030531,7]
[311267289,1705005045582,-178.733525,0.00030593,2]
[311267290,1705005045592,-200.0,0.00030626,15]
[311267291,1705005045601,-314.0,0.00030657,30]
[311267292,1705005045609,-8003.0,0.00030657,30]
[311267293,1705005045618,-252.0,0.00030658,7]
[311267294,1705005045627,-314.0,0.00030667,30]
[311267295,1705005045637,-8003.0,0.00030667,30]
[311267296,1705005045646,-252.0,0.00030668,7]
[311267298,1705005045655,-314.0,0.00030677,30]
[311267299,1705005045665,-8003.0,0.00030677,30]
[311267300,1705005045674,-252.0,0.00030678,7]
[311267301,1705005045683,-218.21355464,0.00030682,4]
[311267302,1705005045692,-305.75165275,0.00030682,4]
[311267303,1705005045701,-556.50023419,0.00030682,4]
[311267304,1705005045710,-454.35129025,0.00030682,4]
[311267306,1705005045720,-193.02771735,0.00030682,4]
[311267307,1705005045729,-166.23743893,0.00030682,2]
[311267309,1705005045738,-242.36751211,0.00030682,4]
[311267310,1705005045748,-155.1178896,0.00030684,2]
[311267311,1705005045758,-282.67247261,0.00030684,3]
[311267312,1705005045768,-156.26672797,0.00030684,4]
[311267314,1705005045777,-4452.61455502,0.00030684,4]
[311267315,1705005045786,-649.77067269,0.00030684,4]
[311267316,1705005045796,-350.70625815,0.00030684,2]
[311267317,1705005045805,-409.88428547,0.00030684,2]
[311267319,1705005045814,-577.10737409,0.00030684,2]
[311267322,1705005045823,-500.0,0.00030684,2]
[311267325,1705005045832,-555.35,0.00030684,2]
[311267328,1705005045841,-500.0,0.00030684,2]
[311267331,1705005045851,-500.0,0.00030684,2]
[311267334,1705005045860,-500.0,0.00030684,2]
[311267336,1705005045869,-500.0,0.00030684,2]
[311267339,1705005045879,-1000.0,0.00030684,2]
[311267342,1705005045888,-500.0,0.00030684,2]
[311267344,1705005045898,-500.0,0.00030684,2]
[311267346,1705005045907,-500.0,0.00030684,2]
[311267348,1705005045916,-500.0,0.00030684,2]
[311267350,1705005045926,-500.0,0.00030684,2]
[311267352,1705005045935,-500.0,0.00030684,2]
[311267354,1705005045944,-507.79952891,0.00030684,2]
[311267356,1705005045954,-500.0,0.00030684,2]
[311267358,1705005045963,-500.0,0.00030684,2]
[311267360,1705005045972,-500.0,0.00030684,2]
[311267362,1705005045981,-500.0,0.00030684,2]
[311267364,1705005045990,-500.0,0.00030684,2]
[311267367,1705005046000,-500.0,0.00030684,2]
[311267370,1705005046008,-500.0,0.00030684,2]
[311267372,1705005046018,-957.08,0.00030684,2]
[311267375,1705005046027,-500.0,0.00030684,2]
[311267378,1705005046036,-438.76690528,0.00030684,2]
[311267380,1705005046046,-500.0,0.00030684,2]
[311267382,1705005046055,-500.0,0.00030684,2]
[311267384,1705005046064,-503.88246748,0.00030684,2]
[311267386,1705005046073,-599.5761929,0.00030684,2]
[311267388,1705005046082,-500.0,0.00030684,2]
[311267390,1705005046091,-280.0,0.00030684,2]
[311267392,1705005046101,-10488.71,0.00030684,2]
[311267394,1705005046110,-500.0,0.00030684,2]
[311267396,1705005046119,-500.0,0.00030684,2]
[311267399,1705005046129,-641.80549609,0.00030684,2]
[311267401,1705005046137,-500.0,0.00030684,2]
[311267403,1705005046146,-500.0,0.00030684,2]
[311267405,1705005046155,-500.0,0.00030684,2]
[311267407,1705005046165,-1496.76,0.00030684,2]
[311267409,1705005046174,-2663.39,0.00030684,2]
[311267411,1705005046183,-500.0,0.00030684,2]
[311267413,1705005046192,-500.0,0.00030684,2]
[311267414,1705005046201,-500.0,0.00030684,2]
[311267415,1705005046211,-1052.26,0.00030684,2]
[311267416,1705005046221,-500.0,0.00030684,2]
[311267417,1705005046230,-558.97,0.00030684,2]
[311267418,1705005046241,-683.02,0.00030684,2]
[311267419,1705005046250,-500.0,0.00030684,2]
[311267420,1705005046259,-500.0,0.00030684,2]
[311267421,1705005046269,-500.0,0.00030684,2]
[311267422,1705005046278,-5139.21,0.00030684,2]
[311267423,1705005046287,-519.44592669,0.00030684,2]
[311267424,1705005046297,-500.0,0.00030684,2]
[311267425,1705005046305,-500.0,0.00030684,2]
[311267426,1705005046315,-500.0,0.00030684,2]
[311267427,1705005046326,-950.32,0.00030684,2]
[311267428,1705005046335,-609.2,0.00030684,2]
[311267429,1705005046346,-500.0,0.00030684,2]
[311267430,1705005046355,-500.0,0.00030684,2]
[311267431,1705005046364,-500.0,0.00030684,2]
[311267432,1705005046373,-839.26,0.00030684,2]
[311267433,1705005046382,-325.34216306,0.00030684,2]
[311267434,1705005046391,-500.0,0.00030684,2]
[311267435,1705005046400,-1543.66,0.00030684,2]
[311267436,1705005046409,-500.0,0.00030684,2]
[311267437,1705005046418,-1991.0,0.00030687,30]
[311267438,1705005046427,-1991.0,0.00030697,30]
[311267439,1705005046436,-200.0,0.000307,4]
[311267440,1705005046445,-1991.0,0.00030707,30]
[311267441,1705005046455,-245.946937,0.00030717,2]
[311267442,1705005046464,-920.155087,0.00030717,2]
[311267443,1705005046473,-651.899884,0.00030717,2]
[311267444,1705005046482,-154.09671267,0.00030718,7]
[311267445,1705005046491,-154.09671267,0.00030743,7]
[311267446,1705005046500,-620.00001834,0.00030838,2]
[311267447,1705005046509,-2000.0,0.000309,2]
[311267448,1705005046518,-2000.0,0.0003091,2]
[311267449,1705005046527,-2000.0,0.0003092,2]
[311267450,1705005046536,-2000.0,0.0003093,2]
[311267451,1705005046546,-2000.0,0.0003094,2]
[311267452,1705005046555,-234.28851783,0.00030949,4]
[311267453,1705005046565,-309.72741092,0.00030949,4]
[311267454,1705005046576,-416.2552085,0.00030949,4]
[311267455,1705005046585,-367.73374133,0.00030949,4]
[311267456,1705005046594,-2261.92521264,0.00030949,4]
[311267457,1705005046603,-1417.85466919,0.00030949,4]
[311267458,1705005046612,-383.0709397,0.00030949,4]
[311267459,1705005046622,-484.17700911,0.00030949,2]
[311267460,1705005046632,-441.73450355,0.00030949,4]
[311267461,1705005046641,-309.61300308,0.00030949,4]
[311267462,1705005046651,-270.45918497,0.00030949,4]
[311267463,1705005046661,-1048.45529382,0.0003095,4]
[311267464,1705005046670,-3731.40148352,0.0003095,4]
[311267465,1705005046678,-309.87921922,0.0003095,4]
[311267466,1705005046687,-1335.29598375,0.0003095,4]
[311267467,1705005046697,-2031.23423016,0.0003095,4]
[311267468,1705005046705,-155.1360822,0.0003095,4]
[311267469,1705005046714,-323.80937645,0.0003095,4]
[311267470,1705005046723,-2000.0,0.0003095,2]
[311267471,1705005046732,-151.0,0.0003095,2]
[311267472,1705005046742,-504.63167526,0.00030958,2]
[311267473,1705005046751,-555.35,0.00030958,2]
[311267474,1705005046842,-500.0,0.00030958,2]
[311267475,1705005046851,-234.38552857,0.00030958,2]
[311267476,1705005046860,-834.41243494,0.00030958,2]
[311267477,1705005046869,-500.0,0.00030958,2]
[311267478,1705005046878,-500.0,0.00030958,2]
[311267479,1705005046887,-500.0,0.00030958,2]
[311267480,1705005046896,-500.0,0.00030958,2]
[311267481,1705005046905,-500.0,0.00030958,2]
[311267482,1705005046913,-306.89,0.00030958,2]
[311267483,1705005046923,-500.0,0.00030958,2]
[311267484,1705005046931,-957.08,0.00030958,2]
[311267485,1705005046940,-500.0,0.00030958,2]
[311267486,1705005046950,-500.0,0.00030958,2]
[311267487,1705005046959,-500.0,0.00030958,2]
[311267488,1705005046970,-10488.71,0.00030958,2]
[311267489,1705005046979,-500.0,0.00030958,2]
[311267490,1705005046988,-500.0,0.00030958,2]
[311267491,1705005046997,-563.46,0.00030958,2]
[311267492,1705005047006,-500.0,0.00030958,2]
[311267493,1705005047015,-500.0,0.00030958,2]
[311267494,1705005047025,-1496.76,0.00030958,2]
[311267495,1705005047034,-2663.39,0.00030958,2]
[311267496,1705005047044,-500.0,0.00030958,2]
[311267497,1705005047053,-538.7,0.00030958,2]
[311267498,1705005047062,-1052.26,0.00030958,2]
[311267499,1705005047071,-558.97,0.00030958,2]
[311267500,1705005047080,-683.02,0.00030958,2]
[311267501,1705005047089,-500.0,0.00030958,2]
[311267502,1705005047099,-500.0,0.00030958,2]
[311267503,1705005047108,-5139.21,0.00030958,2]
[311267504,1705005047117,-500.0,0.00030958,2]
[311267505,1705005047127,-279.26281635,0.00030958,2]
[311267506,1705005047135,-500.0,0.00030958,2]
[311267507,1705005047145,-950.32,0.00030958,2]
[311267508,1705005047154,-609.2,0.00030958,2]
[311267509,1705005047163,-500.0,0.00030958,2]
[311267510,1705005047172,-500.0,0.00030958,2]
[311267511,1705005047181,-500.0,0.00030958,2]
[311267512,1705005047190,-839.26,0.00030958,2]
[311267513,1705005047199,-500.0,0.00030958,2]
[311267514,1705005047208,-1543.66,0.00030958,2]
[311267515,1705005047217,-500.0,0.00030958,2]
[311267516,1705005047227,-2000.0,0.0003096,2]
[311267517,1705005047236,-2066.583364,0.0003097,2]
[311267519,1705005047244,-268.54,0.00030987,2]
[311267520,1705005047254,-268.54,0.00030987,2]
[311267521,1705005047263,-268.54,0.00030987,2]
[311267522,1705005047272,-268.54,0.00030987,2]
[311267523,1705005047281,-268.54,0.00030987,2]
[311267524,1705005047292,-268.54,0.00030987,2]
[311267525,1705005047300,-268.54,0.00030987,2]
[311267526,1705005047309,-268.54,0.00030987,2]